fUST/lending_fUST_20250507
["ID","MTS","AMOUNT","RATE_DAILY","PERIOD"]
[360118681,1746556244565,-400.0,0.00019178,2]
[360118683,1746556244574,-400.0,0.00019178,2]
[360118685,1746556244583,-401.33650777,0.00019178,2]
[360118687,1746556244592,-400.0,0.00019178,2]
[360118689,1746556244602,-400.0,0.00019178,2]
[360118691,1746556244612,-401.04113812,0.00019178,2]
[360118693,1746556244621,-400.0,0.00019178,2]
[360118695,1746556244631,-400.0,0.00019178,2]
[360118697,1746556244641,-583.66,0.00019178,2]
[360118699,1746556244651,-400.0,0.00019178,2]
[360118701,1746556244661,-400.0,0.00019178,2]
[360118703,1746556244670,-400.0,0.00019178,2]
[360118705,1746556244679,-400.0,0.00019178,2]
[360118707,1746556244689,-1671.52,0.00019178,2]
[360118709,1746556244698,-400.0,0.00019178,2]
[360118711,1746556244708,-400.0,0.00019178,2]
[360118713,1746556244717,-400.0,0.00019178,2]
[360118715,1746556244726,-896.18,0.00019178,2]
[360118717,1746556244736,-400.0,0.00019178,2]
[360118719,1746556244746,-406.72015398,0.00019178,2]
[360118721,1746556244755,-400.0,0.00019178,2]
[360118723,1746556244764,-400.0,0.00019178,2]
[360118725,1746556244773,-400.0,0.00019178,2]
[360118727,1746556244783,-611.24,0.00019178,2]
[360118729,1746556244793,-513.04252661,0.00019178,2]
[360118731,1746556244802,-400.0,0.00019178,2]
[360118733,1746556244811,-359.53149701,0.00019178,2]
[360118735,1746556244820,-401.83508776,0.00019178,2]
[360118737,1746556244830,-400.0,0.00019178,2]
[360118739,1746556244839,-400.0,0.00019178,2]
[360118741,1746556244848,-400.0,0.00019178,2]
[360118743,1746556244858,-400.0,0.00019178,2]
[360118745,1746556244867,-400.0,0.00019178,2]
[360118747,1746556244876,-400.0,0.00019178,2]
[360118749,1746556244886,-401.30563412,0.00019178,2]
[360118751,1746556244895,-400.0,0.00019178,2]
[360118753,1746556244905,-400.13538946,0.00019178,2]
[360118755,1746556244914,-400.0,0.00019178,2]
[360118757,1746556244923,-1515.05,0.00019178,2]
[360118759,1746556244933,-259.028416,0.00019178,2]
[360118761,1746556244942,-401.01869542,0.00019178,2]
[360118763,1746556244952,-400.0,0.00019178,2]
[360118765,1746556244961,-400.0,0.00019178,2]
[360118767,1746556244970,-400.0,0.00019178,2]
[360118769,1746556244979,-400.0,0.00019178,2]
[360118771,1746556244988,-400.0,0.00019178,2]
[360118773,1746556244997,-400.0,0.00019178,2]
[360118775,1746556245007,-692.67,0.00019178,2]
[360118777,1746556245016,-216.3917953,0.00019178,2]
[360118779,1746556245024,-400.0,0.00019178,2]
[360118781,1746556245033,-400.0,0.00019178,2]
[360118783,1746556245042,-404.70681988,0.00019178,2]
[360118785,1746556245051,-400.0,0.00019178,2]
[360118787,1746556245061,-400.0,0.00019178,2]
[360118789,1746556245070,-400.0,0.00019178,2]
[360118791,1746556245079,-400.0,0.00019178,2]
[360118793,1746556245089,-400.0,0.00019178,2]
[360118795,1746556245100,-400.0,0.00019178,2]
[360118796,1746556245109,-231.68795328,0.00019178,2]
[360118798,1746556245118,-436.53221498,0.00019178,2]
[360118800,1746556245128,-400.0,0.00019178,2]
[360118802,1746556245139,-400.0,0.00019178,2]
[360118804,1746556245148,-3041.56,0.00019178,2]
[360118806,1746556245157,-400.0,0.00019178,2]
[360118808,1746556245168,-400.0,0.00019178,2]
[360118811,1746556245178,-400.0,0.00019178,2]
[360118813,1746556245187,-400.0,0.00019178,2]
[360118814,1746556245197,-151.0,0.00019178,2]
[360118816,1746556245206,-400.0,0.00019178,2]
[360118818,1746556245215,-1423.51,0.00019178,2]
[360118820,1746556245224,-500.0,0.00019178,2]
[360118822,1746556245234,-151.0,0.00019178,2]
[360118824,1746556245245,-460.13,0.00019178,2]
[360118826,1746556245255,-400.0,0.00019178,2]
[360118828,1746556245264,-400.0,0.00019178,2]
[360118830,1746556245274,-400.0,0.00019178,2]
[360118833,1746556245284,-758.77,0.00019178,2]
[360118835,1746556245294,-400.0,0.00019178,2]
[360118837,1746556245303,-3637.57,0.00019178,2]
[360118839,1746556245313,-151.0,0.00019178,2]
[360118841,1746556245322,-400.0,0.00019178,2]
[360118843,1746556245332,-203.04065088,0.00019178,2]
[360118845,1746556245341,-151.0,0.00019178,2]
[360118847,1746556245349,-400.0,0.00019178,2]
[360118849,1746556245359,-2670.92,0.00019178,2]
[360118851,1746556245368,-2159.99,0.00019178,2]
[360118853,1746556245378,-741.85,0.00019178,2]
[360118854,1746556245387,-741.85,0.00019178,2]
[360118857,1746556245397,-741.85,0.00019178,2]
[360118858,1746556245407,-741.85,0.00019178,2]
[360118860,1746556245417,-741.85,0.00019178,2]
[360118863,1746556245427,-401.8280684,0.00019178,2]
[360118865,1746556245438,-741.85,0.00019178,2]
[360118867,1746556245447,-741.85,0.00019178,2]
[360118869,1746556245457,-741.85,0.00019178,2]
[360118871,1746556245467,-741.85,0.00019178,2]
[360118873,1746556245476,-741.85,0.00019178,2]
[360118875,1746556245485,-741.85,0.00019178,2]
[360118877,1746556245495,-741.85,0.00019178,2]
[360118879,1746556245504,-400.0,0.00019178,2]
[360118881,1746556245514,-741.85,0.00019178,2]
[360118883,1746556245524,-5693.77,0.00019178,2]
[360118885,1746556245534,-741.85,0.00019178,2]
[360118887,1746556245543,-400.0,0.00019178,2]
[360118889,1746556245553,-741.85,0.00019178,2]
[360118891,1746556245563,-741.85,0.00019178,2]
[360118893,1746556245573,-400.0,0.00019178,2]
[360118895,1746556245582,-741.85,0.00019178,2]
[360118897,1746556245591,-741.85,0.00019178,2]
[360118899,1746556245600,-741.85,0.00019178,2]
[360118901,1746556245609,-400.0,0.00019178,2]
[360118903,1746556245619,-741.85,0.00019178,2]
[360118905,1746556245629,-741.85,0.00019178,2]
[360118907,1746556245638,-741.85,0.00019178,2]
[360118909,1746556245647,-741.85,0.00019178,2]
[360118911,1746556245656,-400.0,0.00019178,2]
[360118913,1746556245666,-741.99484471,0.00019178,2]
[360118915,1746556245675,-600.58,0.00019178,2]
[360118917,1746556245684,-1119.95,0.00019178,2]
[360118919,1746556245694,-400.97084348,0.00019178,2]
[360118921,1746556245703,-400.0,0.00019178,2]
[360118923,1746556245713,-2451.0,0.00019178,2]
[360118926,1746556245722,-945.39,0.00019178,2]
[360118928,1746556245731,-400.0,0.00019178,2]
[360118930,1746556245740,-400.0,0.00019178,2]
[360118932,1746556245750,-400.0,0.00019178,2]
[360118935,1746556245759,-1641.79,0.00019178,2]
[360118937,1746556245769,-400.0,0.00019178,2]
[360118939,1746556245781,-400.0,0.00019178,2]
[360118941,1746556245790,-500.0,0.00019178,2]
[360118943,1746556245799,-500.0,0.00019178,2]
[360118945,1746556245809,-500.0,0.00019178,2]
[360118947,1746556245818,-314.86694994,0.00019178,2]
[360118949,1746556245828,-400.0,0.00019178,2]
[360118951,1746556245838,-425.58788198,0.00019178,2]
[360118953,1746556245848,-400.0,0.00019178,2]
[360118955,1746556245857,-400.0,0.00019178,2]
[360118957,1746556245867,-451.19,0.00019178,2]
[360118959,1746556245877,-1219.05,0.00019178,2]
[360118961,1746556245886,-400.0,0.00019178,2]
[360118963,1746556245895,-400.0,0.00019178,2]
[360118965,1746556245905,-1957.05,0.00019178,2]
[360118967,1746556245914,-400.0,0.00019178,2]
[360118969,1746556245923,-400.0,0.00019178,2]
[360118971,1746556245932,-400.0,0.00019178,2]
[360118973,1746556245942,-2880.62,0.00019178,2]
[360118975,1746556245951,-400.0,0.00019178,2]
[360118977,1746556245960,-400.0,0.00019178,2]
[360118979,1746556245969,-400.0,0.00019178,2]
[360118981,1746556245979,-400.0,0.00019178,2]
[360118983,1746556245989,-151.0,0.00019178,2]
[360118985,1746556245999,-400.0,0.00019178,2]
[360118987,1746556246009,-400.0,0.00019178,2]
[360118989,1746556246019,-452.1,0.00019178,2]
[360118990,1746556246029,-4275.0,0.00019178,2]
[360118992,1746556246038,-400.0,0.00019178,2]
[360118994,1746556246048,-1351.99,0.00019178,2]
[360118996,1746556246057,-151.0,0.00019178,2]
[360118998,1746556246067,-1982.6,0.00019178,2]
[360119000,1746556246077,-400.0,0.00019178,2]
[360119002,1746556246087,-688.43,0.00019178,2]
[360119004,1746556246099,-917.94,0.00019178,2]
[360119006,1746556246109,-400.0,0.00019178,2]
[360119009,1746556246119,-400.0,0.00019178,2]
[360119011,1746556246129,-418.59343452,0.00019178,2]
[360119013,1746556246139,-532.82628806,0.00019178,2]
[360119014,1746556246149,-1730.35,0.00019178,2]
[360119016,1746556246158,-400.0,0.00019178,2]
[360119018,1746556246169,-500.0,0.00019178,2]
[360119019,1746556246180,-500.0,0.00019178,2]
[360119020,1746556246190,-500.0,0.00019178,2]
[360119021,1746556246200,-500.0,0.00019178,2]
[360119022,1746556246210,-500.0,0.00019178,2]
[360119023,1746556246220,-437.22,0.00019178,2]
[360119024,1746556246230,-500.0,0.00019178,2]
[360119025,1746556246240,-400.0,0.00019178,2]
[360119027,1746556246250,-500.0,0.00019178,2]
[360119029,1746556246260,-500.0,0.00019178,2]
[360119031,1746556246270,-500.0,0.00019178,2]
[360119033,1746556246280,-500.0,0.00019178,2]
[360119035,1746556246290,-500.0,0.00019178,2]
[360119037,1746556246300,-179.19424047,0.00019178,2]
[360119039,1746556246310,-634.58,0.00019178,2]
[360119041,1746556246319,-2394.23,0.00019178,2]
[360119043,1746556246329,-745.27,0.00019178,2]
[360119045,1746556246338,-1762.42,0.00019178,2]
[360119048,1746556246348,-400.0,0.00019178,2]
[360119050,1746556246358,-400.0,0.00019178,2]
[360119052,1746556246368,-1234.29,0.00019178,2]
[360119054,1746556246378,-400.0,0.00019178,2]
[360119056,1746556246388,-400.0,0.00019178,2]
[360119058,1746556246398,-400.0,0.00019178,2]
[360119060,1746556246408,-401.0693151,0.00019178,2]
[360119063,1746556246417,-700.18,0.00019178,2]
[360119066,1746556246427,-400.0,0.00019178,2]
[360119068,1746556246439,-459.42975202,0.00019178,2]
[360119070,1746556246449,-400.0,0.00019178,2]
[360119072,1746556246459,-438.48,0.00019178,2]
[360119074,1746556246469,-461.86,0.00019178,2]
[360119076,1746556246478,-400.0,0.00019178,2]
[360119078,1746556246488,-305.52403682,0.00019178,2]
[360119080,1746556246498,-400.0,0.00019178,2]
[360119083,1746556246507,-400.0,0.00019178,2]
[360119085,1746556246517,-400.0,0.00019178,2]
[360119087,1746556246526,-400.0,0.00019178,2]
[360119089,1746556246536,-400.0,0.00019178,2]
[360119091,1746556246545,-400.0,0.00019178,2]
[360119093,1746556246555,-400.0,0.00019178,2]
[360119095,1746556246565,-401.05920041,0.00019178,2]
[360119097,1746556246575,-2110.51,0.00019178,2]
[360119099,1746556246585,-400.0,0.00019178,2]
[360119101,1746556246595,-778.7,0.00019178,2]
[360119103,1746556246605,-2433.51,0.00019178,2]
[360119105,1746556246615,-400.0,0.00019178,2]
[360119107,1746556246625,-1456.25,0.00019178,2]
[360119109,1746556246635,-1102.09,0.00019178,2]
[360119111,1746556246645,-400.0,0.00019178,2]
[360119113,1746556246654,-500.0,0.00019178,2]
[360119115,1746556246664,-500.0,0.00019178,2]
[360119117,1746556246673,-500.0,0.00019178,2]
[360119120,1746556246683,-500.0,0.00019178,2]
[360119122,1746556246694,-500.0,0.00019178,2]
[360119124,1746556246703,-500.0,0.00019178,2]
[360119126,1746556246712,-403.09,0.00019178,2]
[360119128,1746556246722,-500.0,0.00019178,2]
[360119130,1746556246732,-500.0,0.00019178,2]
[360119132,1746556246742,-500.0,0.00019178,2]
[360119134,1746556246751,-500.0,0.00019178,2]
[360119136,1746556246761,-500.0,0.00019178,2]
[360119138,1746556246770,-500.0,0.00019178,2]
[360119140,1746556246780,-500.0,0.00019178,2]
[360119142,1746556246790,-500.0,0.00019178,2]
[360119144,1746556246799,-500.0,0.00019178,2]
[360119146,1746556246809,-500.0,0.00019178,2]
[360119148,1746556246820,-500.0,0.00019178,2]
[360119150,1746556246830,-500.0,0.00019178,2]
[360119152,1746556246839,-500.0,0.00019178,2]
[360119154,1746556246849,-500.0,0.00019178,2]
[360119156,1746556246860,-500.0,0.00019178,2]
[360119158,1746556246870,-500.0,0.00019178,2]
[360119160,1746556246880,-500.0,0.00019178,2]
[360119162,1746556246890,-500.0,0.00019178,2]
[360119164,1746556246900,-500.0,0.00019178,2]
[360119166,1746556246909,-500.0,0.00019178,2]
[360119168,1746556246919,-500.0,0.00019178,2]
[360119170,1746556246929,-500.0,0.00019178,2]
[360119172,1746556246939,-500.0,0.00019178,2]
[360119175,1746556246949,-174.11657521,0.00019178,2]
[360119177,1746556246959,-500.0,0.00019178,2]
[360119179,1746556246969,-500.0,0.00019178,2]
[360119181,1746556246979,-500.0,0.00019178,2]
[360119183,1746556246989,-500.0,0.00019178,2]
[360119198,1746556247125,-500.0,0.00019178,2]
[360119200,1746556247136,-500.0,0.00019178,2]
[360119202,1746556247145,-500.0,0.00019178,2]
[360119204,1746556247154,-3021.87,0.00019178,2]
[360119206,1746556247166,-400.0,0.00019178,2]
[360119209,1746556247176,-400.0,0.00019178,2]
[360119211,1746556247186,-400.0,0.00019178,2]
[360119213,1746556247195,-1369.59,0.00019178,2]
[360119215,1746556247204,-319.65673398,0.00019178,2]
[360119217,1746556247214,-1369.59,0.00019178,2]
[360119219,1746556247223,-400.0,0.00019178,2]
[360119221,1746556247233,-1369.59,0.00019178,2]
[360119223,1746556247243,-1369.59,0.00019178,2]
[360119225,1746556247252,-1369.59,0.00019178,2]
[360119227,1746556247261,-400.0,0.00019178,2]
[360119229,1746556247271,-1369.59,0.00019178,2]
[360119231,1746556247279,-897.74,0.00019178,2]
[360119233,1746556247289,-1369.59,0.00019178,2]
[360119235,1746556247299,-400.0,0.00019178,2]
[360119237,1746556247309,-1369.59,0.00019178,2]
[360119239,1746556247319,-1369.59,0.00019178,2]
[360119241,1746556247328,-1369.59,0.00019178,2]
[360119243,1746556247337,-1369.59,0.00019178,2]
[360119245,1746556247347,-400.0,0.00019178,2]
[360119247,1746556247356,-1369.59,0.00019178,2]
[360119249,1746556247366,-1369.59,0.00019178,2]
[360119251,1746556247374,-1369.59,0.00019178,2]
[360119253,1746556247383,-1369.59,0.00019178,2]
[360119255,1746556247392,-1369.59,0.00019178,2]
[360119256,1746556247402,-1369.59,0.00019178,2]
[360119259,1746556247411,-458.42,0.00019178,2]
[360119261,1746556247421,-1369.59,0.00019178,2]
[360119263,1746556247431,-1369.59,0.00019178,2]
[360119265,1746556247441,-400.0,0.00019178,2]
[360119267,1746556247450,-1369.59,0.00019178,2]
[360119269,1746556247459,-1369.59,0.00019178,2]
[360119271,1746556247468,-1369.59,0.00019178,2]
[360119273,1746556247477,-500.0,0.00019178,2]
[360119275,1746556247487,-1369.59,0.00019178,2]
[360119277,1746556247497,-400.0,0.00019178,2]
[360119279,1746556247506,-1369.81327311,0.00019178,2]
[360119281,1746556247515,-400.0,0.00019178,2]
[360119283,1746556247525,-502.25070254,0.00019178,2]
[360119285,1746556247534,-400.0,0.00019178,2]
[360119287,1746556247544,-3687.73,0.00019178,2]
[360119289,1746556247554,-400.0,0.00019178,2]
[360119291,1746556247563,-1815.93,0.00019178,2]
[360119293,1746556247574,-500.0,0.00019178,2]
[360119295,1746556247583,-500.0,0.00019178,2]
[360119297,1746556247593,-500.0,0.00019178,2]
[360119299,1746556247602,-500.0,0.00019178,2]
[360119301,1746556247612,-500.0,0.00019178,2]
[360119303,1746556247621,-200.0,0.00019178,2]
[360119305,1746556247631,-400.0,0.00019178,2]
[360119307,1746556247640,-400.0,0.00019178,2]
[360119309,1746556247650,-400.0,0.00019178,2]
[360119311,1746556247658,-400.0,0.00019178,2]
[360119313,1746556247668,-532.07,0.00019178,2]
[360119315,1746556247677,-1379.79,0.00019178,2]
[360119317,1746556247687,-400.91459012,0.00019178,2]
[360119319,1746556247696,-1046.682964,0.00019178,2]
[360119321,1746556247705,-400.0,0.00019178,2]
[360119323,1746556247714,-283.18379737,0.00019178,2]
[360119325,1746556247724,-2021.67,0.00019178,2]
[360119327,1746556247733,-1046.682964,0.00019178,2]
[360119329,1746556247742,-400.0,0.00019178,2]
[360119331,1746556247751,-400.0,0.00019178,2]
[360119333,1746556247760,-400.0,0.00019178,2]
[360119335,1746556247771,-400.0,0.00019178,2]
[360119337,1746556247779,-400.0,0.00019178,2]
[360119338,1746556247789,-400.0,0.00019178,2]
[360119341,1746556247799,-19331.77,0.00019178,2]
[360119343,1746556247809,-1481.29,0.00019178,2]
[360119345,1746556247818,-422.8,0.00019178,2]
[360119346,1746556247827,-630.1,0.00019178,2]
[360119348,1746556247837,-400.0,0.00019178,2]
[360119350,1746556247846,-151.0,0.00019178,2]
[360119352,1746556247855,-400.0,0.00019178,2]
[360119354,1746556247865,-400.0,0.00019178,2]
[360119356,1746556247875,-400.0,0.00019178,2]
[360119358,1746556247884,-400.0,0.00019178,2]
[360119360,1746556247893,-400.0,0.00019178,2]
[360119362,1746556247902,-400.0,0.00019178,2]
[360119364,1746556247912,-151.0,0.00019178,2]
[360119366,1746556247921,-400.0,0.00019178,2]
[360119368,1746556247930,-400.0,0.00019178,2]
[360119370,1746556247939,-400.0,0.00019178,2]
[360119372,1746556247948,-424.31932119,0.00019178,2]
[360119374,1746556247958,-400.0,0.00019178,2]
[360119376,1746556247968,-400.0,0.00019178,2]
[360119378,1746556247977,-841.77,0.00019178,2]
[360119380,1746556247986,-400.0,0.00019178,2]
[360119382,1746556247995,-400.0,0.00019178,2]
[360119384,1746556248004,-409.14060265,0.00019178,2]
[360119386,1746556248014,-1000.0,0.00019178,2]
[360119388,1746556248023,-400.0,0.00019178,2]
[360119390,1746556248032,-400.0,0.00019178,2]
[360119392,1746556248042,-402.82132138,0.00019178,2]
[360119394,1746556248051,-1985.81,0.00019178,2]
[360119396,1746556248060,-151.0,0.00019178,2]
[360119398,1746556248070,-400.0,0.00019178,2]
[360119400,1746556248080,-400.0,0.00019178,2]
[360119402,1746556248093,-400.0,0.00019178,2]
[360119404,1746556248104,-486.29,0.00019178,2]
[360119406,1746556248113,-400.0,0.00019178,2]
[360119408,1746556248123,-1311.27,0.00019178,2]
[360119410,1746556248133,-1755.77,0.00019178,2]
[360119412,1746556248143,-400.0,0.00019178,2]
[360119414,1746556248154,-1475.17,0.00019178,2]
[360119416,1746556248163,-7534.29,0.00019178,2]
[360119418,1746556248174,-400.0,0.00019178,2]
[360119420,1746556248184,-402.76247651,0.00019178,2]
[360119422,1746556248194,-8873.46,0.00019178,2]
[360119424,1746556248203,-400.0,0.00019178,2]
[360119426,1746556248213,-358.0,0.00019178,2]
[360119428,1746556248222,-400.0,0.00019178,2]
[360119430,1746556248233,-2833.0,0.00019178,2]
[360119432,1746556248243,-400.0,0.00019178,2]
[360119434,1746556248253,-400.0,0.00019178,2]
[360119436,1746556248263,-400.0,0.00019178,2]
[360119438,1746556248274,-442.77,0.00019178,2]
[360119440,1746556248283,-1499.83,0.00019178,2]
[360119442,1746556248292,-400.0,0.00019178,2]
[360119444,1746556248302,-305.90250876,0.00019178,2]
[360119446,1746556248312,-427.19,0.00019178,2]
[360119448,1746556248322,-400.0,0.00019178,2]
[360119450,1746556248331,-400.0,0.00019178,2]
[360119452,1746556248341,-563.37,0.00019178,2]
[360119454,1746556248351,-1081.24,0.00019178,2]
[360119456,1746556248361,-613.87,0.00019178,2]
[360119458,1746556248371,-400.0,0.00019178,2]
[360119460,1746556248381,-400.0,0.00019178,2]
[360119462,1746556248391,-400.0,0.00019178,2]
[360119464,1746556248400,-400.0,0.00019178,2]
[360119466,1746556248409,-1377.75,0.00019178,2]
[360119468,1746556248419,-500.84393885,0.00019178,2]
[360119470,1746556248428,-400.0,0.00019178,2]
[360119472,1746556248438,-400.0,0.00019178,2]
[360119474,1746556248447,-404.34239598,0.00019178,2]
[360119476,1746556248456,-2573.72,0.00019178,2]
[360119478,1746556248466,-400.0,0.00019178,2]
[360119480,1746556248476,-400.0,0.00019178,2]
[360119482,1746556248485,-400.0,0.00019178,2]
[360119484,1746556248494,-400.0,0.00019178,2]
[360119486,1746556248503,-405.80884421,0.00019178,2]
[360119488,1746556248513,-400.0,0.00019178,2]
[360119490,1746556248522,-460.53,0.00019178,2]
[360119492,1746556248531,-400.0,0.00019178,2]
[360119494,1746556248542,-400.0,0.00019178,2]
[360119496,1746556248551,-9056.13,0.00019178,2]
[360119498,1746556248560,-400.0,0.00019178,2]
[360119500,1746556248569,-400.0,0.00019178,2]
[360119502,1746556248579,-640.19,0.00019178,2]
[360119503,1746556248588,-400.0,0.00019178,2]
[360119505,1746556248598,-400.0,0.00019178,2]
[360119507,1746556248607,-400.0,0.00019178,2]
[360119509,1746556248617,-265.84274164,0.00019178,2]
[360119512,1746556248627,-400.0,0.00019178,2]
[360119513,1746556248636,-400.0,0.00019178,2]
[360119515,1746556248646,-400.0,0.00019178,2]
[360119518,1746556248656,-400.0,0.00019178,2]
[360119519,1746556248665,-2370.45,0.00019178,2]
[360119521,1746556248674,-400.0,0.00019178,2]
[360119523,1746556248684,-400.0,0.00019178,2]
[360119525,1746556248693,-698.58,0.00019178,2]
[360119527,1746556248703,-400.0,0.00019178,2]
[360119529,1746556248712,-400.0,0.00019178,2]
[360119531,1746556248722,-400.17178998,0.00019178,2]
[360119533,1746556248731,-400.0,0.00019178,2]
[360119535,1746556248741,-400.0,0.00019178,2]
[360119537,1746556248750,-151.0,0.00019178,2]
[360119539,1746556248760,-709.483782,0.00019178,2]
[360119542,1746556248771,-300.0,0.00019178,2]
[360119544,1746556248780,-1665.41685812,0.00019205,5]
[360119545,1746556248790,-156.587,0.00019233,2]
[360119547,1746556248799,-160.0,0.00019257,2]
[360119549,1746556248809,-160.0,0.00019257,2]
[360119551,1746556248818,-160.0,0.00019257,2]
[360119553,1746556248827,-160.0,0.00019257,2]
[360119555,1746556248836,-160.0,0.00019257,2]
[360119557,1746556248846,-313.9004746,0.00019257,2]
[360119559,1746556248855,-162.380719,0.00019288,2]
[360119561,1746556248865,-151.0,0.000193,2]
[360119563,1746556248876,-1000.0,0.00019315,2]
[360119565,1746556248886,-171.64579222,0.00019322,2]
[360119567,1746556248896,-151.0,0.00019329,2]
[360119569,1746556248906,-151.0,0.00019329,2]
[360119571,1746556248915,-258.987478,0.00019329,2]
[360119573,1746556248925,-258.987478,0.00019329,2]
[360119575,1746556248934,-151.0,0.00019329,2]
[360119577,1746556248944,-1877.288413,0.00019329,2]
[360119579,1746556248954,-1877.288413,0.00019329,2]
[360119581,1746556248963,-371.027915,0.00019329,2]
[360119583,1746556248974,-371.027915,0.00019329,2]
[360119585,1746556248983,-151.0,0.00019329,2]
[360119587,1746556248993,-100000.0,0.00019329,2]
[360119589,1746556249003,-614.13335501,0.00019332,2]
[360119591,1746556249012,-168.3888056,0.00019343,2]
[360119593,1746556249021,-174.61919141,0.00019398,2]
[360119595,1746556249031,-1000.0,0.00019406,5]
[360119597,1746556249040,-151.0,0.00019451,2]
[360119599,1746556249050,-151.0,0.00019451,2]
[360119601,1746556249060,-294.469687,0.00019452,2]
[360119603,1746556249069,-151.0,0.00019452,2]
[360119605,1746556249079,-151.0,0.00019452,2]
[360119607,1746556249089,-258.987478,0.00019452,2]
[360119609,1746556249100,-258.987478,0.00019452,2]
[360119610,1746556249110,-258.987478,0.00019452,2]
[360119612,1746556249119,-258.987478,0.00019452,2]
[360119614,1746556249129,-405.48311805,0.00019452,2]
[360119616,1746556249140,-507.8850277,0.00019452,2]
[360119618,1746556249150,-401.8274264,0.00019452,2]
[360119620,1746556249160,-400.0,0.00019452,2]
[360119622,1746556249170,-400.0,0.00019452,2]
[360119624,1746556249180,-400.0,0.00019452,2]
[360119626,1746556249189,-400.0,0.00019452,2]
[360119628,1746556249199,-400.0,0.00019452,2]
[360119630,1746556249209,-400.0,0.00019452,2]
[360119632,1746556249218,-151.0,0.00019452,2]
[360119634,1746556249228,-151.0,0.00019452,2]
[360119636,1746556249237,-400.0,0.00019452,2]
[360119638,1746556249246,-400.0,0.00019452,2]
[360119640,1746556249256,-400.0,0.00019452,2]
[360119642,1746556249266,-212.45092939,0.00019452,2]
[360119644,1746556249277,-407.00011108,0.00019452,2]
[360119646,1746556249287,-451.51,0.00019452,2]
[360119648,1746556249296,-400.0,0.00019452,2]
[360119650,1746556249306,-400.0,0.00019452,2]
[360119652,1746556249315,-506.97744387,0.00019452,2]
[360119654,1746556249324,-400.0,0.00019452,2]
[360119656,1746556249334,-400.0,0.00019452,2]
[360119658,1746556249344,-400.0,0.00019452,2]
[360119660,1746556249353,-400.0,0.00019452,2]
[360119662,1746556249363,-406.77745766,0.00019452,2]
[360119664,1746556249373,-400.0,0.00019452,2]
[360119666,1746556249382,-400.0,0.00019452,2]
[360119668,1746556249391,-675.2,0.00019452,2]
[360119670,1746556249400,-400.0,0.00019452,2]
[360119672,1746556249409,-400.0,0.00019452,2]
[360119674,1746556249419,-400.0,0.00019452,2]
[360119676,1746556249429,-400.0,0.00019452,2]
[360119678,1746556249438,-400.0,0.00019452,2]
[360119680,1746556249447,-338.53186601,0.00019452,2]
[360119682,1746556249458,-400.0,0.00019452,2]
[360119684,1746556249468,-176.52210069,0.00019452,2]
[360119686,1746556249479,-401.8360317,0.00019452,2]
[360119688,1746556249488,-400.0,0.00019452,2]
[360119690,1746556249497,-400.0,0.00019452,2]